[Event "Late-Titled-Tuesday-Blitz-May-07-2024"]
[Site "Chess.com"]
[Date "2024.05.07"]
[Round "11"]
[White "dolynachess"]
[Black "GlavkonVVS"]
[Result "1-0"]
[WhiteElo "2535"]
[BlackElo "2643"]
[TimeControl "180+1"]
[EndTime "16:07:41 PDT"]
[Termination "dolynachess won by resignation"]

1. d4 {[%clk 0:03:00]} 1... Nf6 {[%clk 0:03:00.9]} 2. c4 {[%clk 0:03:00.3]} 2...
c5 {[%clk 0:03:00.8]} 3. Nf3 {[%clk 0:02:59.9]} 3... cxd4 {[%clk 0:03:00.5]} 4.
Nxd4 {[%clk 0:03:00.8]} 4... Nc6 {[%clk 0:03:00.5]} 5. g3 {[%clk 0:03:00.4]}
5... d6 {[%clk 0:03:00.6]} 6. Bg2 {[%clk 0:03:00.5]} 6... Bd7 {[%clk 0:02:59.2]}
7. O-O {[%clk 0:03:00.4]} 7... e6 {[%clk 0:02:59.5]} 8. Nc3 {[%clk 0:03:00.3]}
8... a6 {[%clk 0:02:59.6]} 9. b3 {[%clk 0:02:59.6]} 9... Rc8 {[%clk 0:02:59.7]}
10. Bb2 {[%clk 0:03:00]} 10... Be7 {[%clk 0:02:59.6]} 11. Rc1 {[%clk 0:03:00.1]}
11... O-O {[%clk 0:02:59.2]} 12. Qd2 {[%clk 0:03:00.5]} 12... Qa5 {[%clk
0:02:59]} 13. Rfd1 {[%clk 0:03:00]} 13... Nxd4 {[%clk 0:02:57.2]} 14. Qxd4
{[%clk 0:02:59.3]} 14... b5 {[%clk 0:02:57.4]} 15. cxb5 {[%clk 0:01:59]} 15...
axb5 {[%clk 0:02:57.4]} 16. a3 {[%clk 0:01:47.5]} 16... d5 {[%clk 0:02:54.8]}
17. b4 {[%clk 0:01:45.6]} 17... Qa6 {[%clk 0:02:53.7]} 18. e4 {[%clk 0:01:45]}
18... Rc4 {[%clk 0:02:53.5]} 19. Qe3 {[%clk 0:01:32.1]} 19... Ng4 {[%clk
0:02:35]} 20. Qe2 {[%clk 0:01:25.5]} 20... d4 {[%clk 0:02:23.5]} 21. Qxg4 {[%clk
0:01:16.4]} 21... dxc3 {[%clk 0:02:23.3]} 22. Bxc3 {[%clk 0:00:52.2]} 22... Rxc3
{[%clk 0:02:19.8]} 23. Rxc3 {[%clk 0:00:52.7]} 23... Bf6 {[%clk 0:02:10.1]} 24.
Re3 {[%clk 0:00:48.7]} 24... Bc8 {[%clk 0:01:57]} 25. e5 {[%clk 0:00:48.5]}
25... Be7 {[%clk 0:01:55.6]} 26. Qe4 {[%clk 0:00:43.5]} 26... Qa7 {[%clk
0:01:50.8]} 27. Rc3 {[%clk 0:00:37]} 27... h5 {[%clk 0:01:37.1]} 28. Qc6 {[%clk
0:00:31.2]} 28... h4 {[%clk 0:01:27]} 29. Qc7 {[%clk 0:00:30.8]} 29... Qa4
{[%clk 0:01:25.4]} 30. Rd4 {[%clk 0:00:19.2]} 30... Bg5 {[%clk 0:01:21.6]} 31.
f4 {[%clk 0:00:16.3]} 31... Bh6 {[%clk 0:01:20.3]} 32. Rd8 {[%clk 0:00:13.6]}
32... Kh7 {[%clk 0:01:11.9]} 33. Be4+ {[%clk 0:00:07]} 33... g6 {[%clk
0:01:11.3]} 34. Rxf8 {[%clk 0:00:06.9]} 34... Qd1+ {[%clk 0:01:08.3]} 35. Kg2
{[%clk 0:00:06]} 35... h3+ {[%clk 0:01:07.2]} 36. Kxh3 {[%clk 0:00:04.5]} 36...
Qh5+ {[%clk 0:01:07.3]} 37. Kg2 {[%clk 0:00:04.8]} 37... Qe2+ {[%clk 0:01:07.8]}
38. Kg1 {[%clk 0:00:04.8]} 38... Qe1+ {[%clk 0:01:07.8]} 39. Kg2 {[%clk
0:00:04.2]} 39... Qxe4+ {[%clk 0:01:06.6]} 40. Kf2 {[%clk 0:00:01.2]} 40... Qd4+
{[%clk 0:01:01.9]} 41. Re3 {[%clk 0:00:01.8]} 41... Qd2+ {[%clk 0:01:00.1]} 42.
Re2 {[%clk 0:00:02.3]} 42... Qd4+ {[%clk 0:00:59.4]} 43. Re3 {[%clk 0:00:02.8]}
43... Bxf8 {[%clk 0:00:58.5]} 44. Qxc8 {[%clk 0:00:02.1]} 44... g5 {[%clk
0:00:54.7]} 45. Qc3 {[%clk 0:00:00.6]} 45... Qd5 {[%clk 0:00:53.2]} 46. Qd3+
{[%clk 0:00:00.8]} 46... Kg7 {[%clk 0:00:53]} 47. Qxd5 {[%clk 0:00:00.8]} 47...
exd5 {[%clk 0:00:53.6]} 48. Rd3 {[%clk 0:00:01.7]} 48... gxf4 {[%clk 0:00:53.7]}
49. gxf4 {[%clk 0:00:02.2]} 49... Kg6 {[%clk 0:00:54.6]} 50. Kf3 {[%clk
0:00:02.8]} 50... Kf5 {[%clk 0:00:55.5]} 51. Rxd5 {[%clk 0:00:03.2]} 51... Be7
{[%clk 0:00:55.9]} 52. Rxb5 {[%clk 0:00:04.1]} 52... Ke6 {[%clk 0:00:56.3]} 53.
Rb7 {[%clk 0:00:05]} 53... Bh4 {[%clk 0:00:55.8]} 54. b5 {[%clk 0:00:05.9]}
54... Kd5 {[%clk 0:00:56.2]} 55. a4 {[%clk 0:00:06.7]} 55... Kc5 {[%clk
0:00:56.6]} 56. a5 {[%clk 0:00:07.5]} 56... Bd8 {[%clk 0:00:56.4]} 57. a6 {[%clk
0:00:08.4]} 57... Bb6 {[%clk 0:00:56.6]} 58. a7 {[%clk 0:00:08.7]} 58... Bxa7
{[%clk 0:00:55.9]} 59. Rxa7 {[%clk 0:00:09.6]} 59... Kxb5 {[%clk 0:00:56.6]} 60.
Rxf7 {[%clk 0:00:10.1]} 60... Kc4 {[%clk 0:00:18.3]} 61. Rf6 {[%clk 0:00:11]}
1-0

[Event "Late-Titled-Tuesday-Blitz-May-07-2024"]
[Site "Chess.com"]
[Date "2024.05.07"]
[Round "11"]
[White "GianmarcoVaR"]
[Black "KaydenTroffChess"]
[Result "0-1"]
[WhiteElo "2788"]
[BlackElo "2881"]
[TimeControl "180+1"]
[EndTime "16:07:43 PDT"]
[Termination "KaydenTroffChess won by resignation"]

1. e4 {[%clk 0:03:00.9]} 1... c5 {[%clk 0:03:00]} 2. Nf3 {[%clk 0:03:00.2]} 2...
g6 {[%clk 0:03:00.3]} 3. c3 {[%clk 0:02:59.4]} 3... Bg7 {[%clk 0:03:00]} 4. d4
{[%clk 0:02:59.8]} 4... cxd4 {[%clk 0:03:00.7]} 5. cxd4 {[%clk 0:03:00.6]} 5...
d5 {[%clk 0:03:01.4]} 6. e5 {[%clk 0:03:00.8]} 6... Nc6 {[%clk 0:02:58.8]} 7. h3
{[%clk 0:02:59.5]} 7... Nh6 {[%clk 0:02:58.4]} 8. Bd3 {[%clk 0:02:57.6]} 8...
O-O {[%clk 0:02:51.3]} 9. Nc3 {[%clk 0:02:42.2]} 9... f6 {[%clk 0:02:46.1]} 10.
exf6 {[%clk 0:02:40.8]} 10... exf6 {[%clk 0:02:41.8]} 11. O-O {[%clk 0:02:41.1]}
11... Nf5 {[%clk 0:02:40]} 12. Bc2 {[%clk 0:02:39.5]} 12... Be6 {[%clk
0:02:26.8]} 13. Re1 {[%clk 0:02:37.5]} 13... Qd7 {[%clk 0:02:25.4]} 14. Bf4
{[%clk 0:02:29]} 14... Bf7 {[%clk 0:02:23.7]} 15. Nb5 {[%clk 0:02:26]} 15... a6
{[%clk 0:02:05.5]} 16. Nc3 {[%clk 0:02:25.3]} 16... b5 {[%clk 0:02:05.8]} 17.
Qd2 {[%clk 0:02:24.2]} 17... Nd6 {[%clk 0:02:03.6]} 18. Bxd6 {[%clk 0:02:20.2]}
18... Qxd6 {[%clk 0:02:04.5]} 19. a4 {[%clk 0:01:59.2]} 19... b4 {[%clk
0:02:01.2]} 20. Ne2 {[%clk 0:01:59.8]} 20... Na5 {[%clk 0:01:49.4]} 21. Qf4
{[%clk 0:01:50.5]} 21... Qxf4 {[%clk 0:01:31.8]} 22. Nxf4 {[%clk 0:01:50.1]}
22... Rac8 {[%clk 0:01:32.4]} 23. Bd3 {[%clk 0:01:49.9]} 23... Bh6 {[%clk
0:01:26.2]} 24. Ne6 {[%clk 0:01:47.4]} 24... Bxe6 {[%clk 0:01:09.2]} 25. Rxe6
{[%clk 0:01:47.1]} 25... Nc4 {[%clk 0:01:06.2]} 26. b3 {[%clk 0:01:01.9]} 26...
Na5 {[%clk 0:01:06.1]} 27. Rb1 {[%clk 0:00:59.5]} 27... Rc3 {[%clk 0:01:01.8]}
28. Bxa6 {[%clk 0:00:57.1]} 28... Rb8 {[%clk 0:00:59.8]} 29. Rd6 {[%clk
0:00:34.4]} 29... Nxb3 {[%clk 0:00:32.2]} 30. Rxd5 {[%clk 0:00:33.6]} 30... Rc1+
{[%clk 0:00:32.6]} 31. Rxc1 {[%clk 0:00:33.5]} 31... Nxc1 {[%clk 0:00:33.5]} 32.
Bc4 {[%clk 0:00:17]} 32... Kf8 {[%clk 0:00:31.3]} 33. Rb5 {[%clk 0:00:03.1]}
33... Rxb5 {[%clk 0:00:30.6]} 34. axb5 {[%clk 0:00:03.5]} 34... b3 {[%clk
0:00:31.3]} 35. Bxb3 {[%clk 0:00:02.5]} 35... Nxb3 {[%clk 0:00:32.2]} 36. b6
{[%clk 0:00:02.6]} 36... Bf4 {[%clk 0:00:29.5]} 37. Kf1 {[%clk 0:00:02]} 37...
Ke7 {[%clk 0:00:28.6]} 38. Ke2 {[%clk 0:00:02.2]} 38... Kd7 {[%clk 0:00:24]} 39.
Kd3 {[%clk 0:00:02.4]} 39... Kc6 {[%clk 0:00:24.3]} 40. Ke4 {[%clk 0:00:02.7]}
40... Bd6 {[%clk 0:00:22.6]} 41. g4 {[%clk 0:00:02.2]} 41... Na5 {[%clk
0:00:20.1]} 42. h4 {[%clk 0:00:02]} 42... Nc4 {[%clk 0:00:19.7]} 43. g5 {[%clk
0:00:01.9]} 43... f5+ {[%clk 0:00:19.6]} 44. Kd3 {[%clk 0:00:02.3]} 44... Nxb6
{[%clk 0:00:20.3]} 45. h5 {[%clk 0:00:03]} 45... Nd5 {[%clk 0:00:20.3]} 46. hxg6
{[%clk 0:00:02.8]} 46... hxg6 {[%clk 0:00:21.2]} 47. Kc4 {[%clk 0:00:03.2]}
47... Ne7 {[%clk 0:00:21.1]} 48. Nh4 {[%clk 0:00:03.1]} 48... Bf4 {[%clk
0:00:20.9]} 49. Nf3 {[%clk 0:00:03.7]} 49... Kd6 {[%clk 0:00:21.5]} 50. Kc3
{[%clk 0:00:03.7]} 50... Kd5 {[%clk 0:00:22]} 51. Kd3 {[%clk 0:00:04.3]} 51...
Nc6 {[%clk 0:00:21.7]} 52. Nh4 {[%clk 0:00:04.8]} 52... Ne7 {[%clk 0:00:21.6]}
53. Nf3 {[%clk 0:00:05.4]} 53... Bc1 {[%clk 0:00:17.3]} 54. Kc2 {[%clk
0:00:05.8]} 54... Ke4 {[%clk 0:00:17.5]} 55. d5 {[%clk 0:00:03.7]} 55... Kxf3
{[%clk 0:00:14.6]} 56. d6 {[%clk 0:00:04.1]} 56... Bxg5 {[%clk 0:00:15.2]} 0-1

[Event "Late-Titled-Tuesday-Blitz-May-07-2024"]
[Site "Chess.com"]
[Date "2024.05.07"]
[Round "11"]
[White "ansko1999"]
[Black "Zhigalko_Sergei"]
[Result "0-1"]
[WhiteElo "2653"]
[BlackElo "2870"]
[TimeControl "180+1"]
[EndTime "16:07:45 PDT"]
[Termination "Zhigalko_Sergei won by resignation"]

1. c4 {[%clk 0:03:00.9]} 1... e5 {[%clk 0:03:00]} 2. Nf3 {[%clk 0:03:00.5]} 2...
Nc6 {[%clk 0:02:55.3]} 3. d4 {[%clk 0:03:00.1]} 3... exd4 {[%clk 0:02:47.4]} 4.
Nxd4 {[%clk 0:02:59.9]} 4... Bc5 {[%clk 0:02:39]} 5. Nb3 {[%clk 0:02:52.6]} 5...
Bb4+ {[%clk 0:02:31.1]} 6. Bd2 {[%clk 0:02:50.7]} 6... Bxd2+ {[%clk 0:02:25]} 7.
Qxd2 {[%clk 0:02:50.9]} 7... Nf6 {[%clk 0:02:25.9]} 8. Nc3 {[%clk 0:02:43.4]}
8... O-O {[%clk 0:02:25]} 9. e3 {[%clk 0:02:25.1]} 9... d6 {[%clk 0:02:24.7]}
10. Be2 {[%clk 0:02:17.9]} 10... Re8 {[%clk 0:02:24.6]} 11. O-O {[%clk
0:02:17.8]} 11... Be6 {[%clk 0:02:11.6]} 12. Nd4 {[%clk 0:02:07.8]} 12... Nxd4
{[%clk 0:02:07.8]} 13. Qxd4 {[%clk 0:02:06.2]} 13... Nd7 {[%clk 0:01:57.8]} 14.
b3 {[%clk 0:01:55.9]} 14... a5 {[%clk 0:01:57.8]} 15. Rad1 {[%clk 0:01:53]}
15... Qg5 {[%clk 0:01:50]} 16. f4 {[%clk 0:01:42.2]} 16... Qg6 {[%clk
0:01:39.5]} 17. Bd3 {[%clk 0:01:38.7]} 17... f5 {[%clk 0:01:34.8]} 18. e4 {[%clk
0:01:32.3]} 18... Nf6 {[%clk 0:01:11.4]} 19. exf5 {[%clk 0:01:20.6]} 19... Bxf5
{[%clk 0:01:10.5]} 20. Bxf5 {[%clk 0:01:17.8]} 20... Qxf5 {[%clk 0:01:10.5]} 21.
Nd5 {[%clk 0:01:15.8]} 21... Nxd5 {[%clk 0:01:02.5]} 22. Qxd5+ {[%clk 0:01:16]}
22... Qxd5 {[%clk 0:01:02.7]} 23. cxd5 {[%clk 0:01:01.9]} 23... a4 {[%clk
0:00:58.2]} 24. Rfe1 {[%clk 0:00:50.6]} 24... Kf7 {[%clk 0:00:44.5]} 25. Rxe8
{[%clk 0:00:45.8]} 25... Kxe8 {[%clk 0:00:44.5]} 26. Re1+ {[%clk 0:00:43.4]}
26... Kd7 {[%clk 0:00:44.6]} 27. b4 {[%clk 0:00:42.8]} 27... a3 {[%clk
0:00:40.8]} 28. Re3 {[%clk 0:00:38.6]} 28... Ra4 {[%clk 0:00:37.6]} 29. Rg3
{[%clk 0:00:24]} 29... g6 {[%clk 0:00:32.1]} 30. Rb3 {[%clk 0:00:18.9]} 30... c6
{[%clk 0:00:31.4]} 31. dxc6+ {[%clk 0:00:18.6]} 31... Kxc6 {[%clk 0:00:32.3]}
32. g4 {[%clk 0:00:13.8]} 32... Kd5 {[%clk 0:00:21.6]} 33. Kf2 {[%clk
0:00:11.9]} 33... Ke4 {[%clk 0:00:22]} 34. Kg3 {[%clk 0:00:12]} 34... d5 {[%clk
0:00:22.5]} 35. f5 {[%clk 0:00:11.4]} 35... gxf5 {[%clk 0:00:22.3]} 36. gxf5
{[%clk 0:00:11.8]} 36... Kxf5 {[%clk 0:00:23.2]} 37. Kf3 {[%clk 0:00:10.9]}
37... d4 {[%clk 0:00:20.4]} 38. h4 {[%clk 0:00:09.1]} 38... Ke5 {[%clk
0:00:18.3]} 39. h5 {[%clk 0:00:07.9]} 39... Ra6 {[%clk 0:00:16]} 40. b5 {[%clk
0:00:06.3]} 40... Ra4 {[%clk 0:00:12.2]} 41. h6 {[%clk 0:00:04.6]} 41... Kd5
{[%clk 0:00:11.9]} 42. Kf4 {[%clk 0:00:04]} 42... Ra5 {[%clk 0:00:05.1]} 43. Kf5
{[%clk 0:00:02.8]} 43... Kc4 {[%clk 0:00:05.3]} 44. Kf6 {[%clk 0:00:02.4]} 44...
d3 {[%clk 0:00:05.1]} 45. Kg7 {[%clk 0:00:02.8]} 45... d2 {[%clk 0:00:05.2]} 46.
Rb1 {[%clk 0:00:03.1]} 46... Rxb5 {[%clk 0:00:05.3]} 47. Rd1 {[%clk 0:00:03.7]}
47... Kc3 {[%clk 0:00:05.1]} 48. Kxh7 {[%clk 0:00:03.9]} 48... Kc2 {[%clk
0:00:05.4]} 49. Rh1 {[%clk 0:00:02.3]} 49... d1=Q {[%clk 0:00:05.8]} 50. Rxd1
{[%clk 0:00:02.6]} 50... Kxd1 {[%clk 0:00:06.7]} 51. Kg7 {[%clk 0:00:03.3]}
51... Rg5+ {[%clk 0:00:06.3]} 52. Kf6 {[%clk 0:00:03.4]} 52... Rh5 {[%clk
0:00:06.3]} 53. Kg6 {[%clk 0:00:03.8]} 53... Rh2 {[%clk 0:00:06.6]} 54. h7
{[%clk 0:00:03.7]} 54... Kc2 {[%clk 0:00:07]} 55. h8=Q {[%clk 0:00:03.8]} 55...
Rxh8 {[%clk 0:00:05.8]} 0-1

[Event "Late-Titled-Tuesday-Blitz-May-07-2024"]
[Site "Chess.com"]
[Date "2024.05.07"]
[Round "11"]
[White "Temirlan_Baltabaev"]
[Black "emeli_chess"]
[Result "1-0"]
[WhiteElo "2565"]
[BlackElo "2447"]
[TimeControl "180+1"]
[EndTime "16:07:48 PDT"]
[Termination "Temirlan_Baltabaev won by resignation"]

1. d4 {[%clk 0:03:00.9]} 1... Nf6 {[%clk 0:02:59.7]} 2. Nf3 {[%clk 0:03:00.8]}
2... d5 {[%clk 0:02:59.6]} 3. g3 {[%clk 0:03:00.8]} 3... Bg4 {[%clk 0:02:58.4]}
4. Bg2 {[%clk 0:03:00.6]} 4... Nbd7 {[%clk 0:02:58.7]} 5. O-O {[%clk 0:02:59.5]}
5... e6 {[%clk 0:02:58.8]} 6. c4 {[%clk 0:02:59.5]} 6... c6 {[%clk 0:02:58.5]}
7. Nc3 {[%clk 0:02:57.7]} 7... Bd6 {[%clk 0:02:58]} 8. b3 {[%clk 0:02:54.1]}
8... O-O {[%clk 0:02:56.9]} 9. Bb2 {[%clk 0:02:53.4]} 9... Qe7 {[%clk
0:02:56.8]} 10. Re1 {[%clk 0:02:50.7]} 10... Ba3 {[%clk 0:02:55.5]} 11. Qd2
{[%clk 0:02:48]} 11... Bxb2 {[%clk 0:02:55]} 12. Qxb2 {[%clk 0:02:47.8]} 12...
Rfe8 {[%clk 0:02:52.2]} 13. e4 {[%clk 0:02:45.9]} 13... dxe4 {[%clk 0:02:50.6]}
14. Nxe4 {[%clk 0:02:46.8]} 14... Nxe4 {[%clk 0:02:50.7]} 15. Rxe4 {[%clk
0:02:46.8]} 15... Bf5 {[%clk 0:02:50.5]} 16. Re3 {[%clk 0:02:45.6]} 16... a5
{[%clk 0:02:44.6]} 17. d5 {[%clk 0:02:29.9]} 17... cxd5 {[%clk 0:02:35.8]} 18.
cxd5 {[%clk 0:02:29.2]} 18... Qf6 {[%clk 0:02:30.8]} 19. Qxf6 {[%clk 0:02:22.2]}
19... Nxf6 {[%clk 0:02:30.7]} 20. dxe6 {[%clk 0:02:12.2]} 20... Bxe6 {[%clk
0:02:24.8]} 21. Nd4 {[%clk 0:02:04.8]} 21... Bd5 {[%clk 0:02:22.9]} 22. Rae1
{[%clk 0:01:59.7]} 22... Rxe3 {[%clk 0:02:21.2]} 23. Rxe3 {[%clk 0:01:58.8]}
23... Bxg2 {[%clk 0:02:21.1]} 24. Kxg2 {[%clk 0:01:58.9]} 24... Kf8 {[%clk
0:02:13.8]} 25. Nb5 {[%clk 0:01:53.3]} 25... a4 {[%clk 0:02:04]} 26. Nd6 {[%clk
0:01:39.5]} 26... axb3 {[%clk 0:01:56.9]} 27. axb3 {[%clk 0:01:37.8]} 27... b6
{[%clk 0:01:50.4]} 28. Rc3 {[%clk 0:01:31.4]} 28... Nd5 {[%clk 0:01:40.1]} 29.
Rd3 {[%clk 0:01:26.8]} 29... Nf6 {[%clk 0:01:21.5]} 30. Nc4 {[%clk 0:01:21.2]}
30... b5 {[%clk 0:01:19.2]} 31. Nd6 {[%clk 0:01:18.6]} 31... b4 {[%clk
0:01:18.3]} 32. Nc4 {[%clk 0:01:04.8]} 32... Ke7 {[%clk 0:01:14.9]} 33. Kf3
{[%clk 0:01:01.7]} 33... Rd8 {[%clk 0:01:11.2]} 34. Re3+ {[%clk 0:01:00.7]}
34... Kd7 {[%clk 0:01:06.7]} 35. Ne5+ {[%clk 0:01:00]} 35... Kc7 {[%clk
0:01:02.8]} 36. Nxf7 {[%clk 0:00:52.9]} 36... Nd5 {[%clk 0:00:57.9]} 37. Rd3
{[%clk 0:00:49.3]} 37... Rf8 {[%clk 0:00:56.3]} 38. Rxd5 {[%clk 0:00:47]} 38...
Rxf7+ {[%clk 0:00:56.3]} 39. Ke3 {[%clk 0:00:45.3]} 39... Kc6 {[%clk 0:00:55.9]}
40. Rd4 {[%clk 0:00:44.6]} 40... Kc5 {[%clk 0:00:55]} 41. Rc4+ {[%clk
0:00:44.7]} 41... Kb5 {[%clk 0:00:55.1]} 42. f4 {[%clk 0:00:44.5]} 42... Ra7
{[%clk 0:00:49.5]} 43. Rd4 {[%clk 0:00:41.3]} 43... Ra3 {[%clk 0:00:47.4]} 44.
Rd5+ {[%clk 0:00:40.1]} 44... Kc6 {[%clk 0:00:47.5]} 45. Rd3 {[%clk 0:00:40.6]}
45... Kc5 {[%clk 0:00:45.8]} 46. h4 {[%clk 0:00:38.1]} 46... Ra1 {[%clk
0:00:45.3]} 47. Ke4 {[%clk 0:00:36.3]} 47... Re1+ {[%clk 0:00:44.6]} 48. Re3
{[%clk 0:00:36.1]} 48... Rc1 {[%clk 0:00:40.3]} 49. f5 {[%clk 0:00:30.9]} 49...
h5 {[%clk 0:00:38.7]} 50. Kf4 {[%clk 0:00:28]} 50... Rc3 {[%clk 0:00:35.6]} 51.
Re7 {[%clk 0:00:10.5]} 51... Rxb3 {[%clk 0:00:34]} 52. Rxg7 {[%clk 0:00:11.1]}
52... Rc3 {[%clk 0:00:32.6]} 53. Rb7 {[%clk 0:00:08.9]} 53... b3 {[%clk
0:00:32.5]} 54. f6 {[%clk 0:00:08.8]} 54... Kc4 {[%clk 0:00:27.7]} 55. f7 {[%clk
0:00:07.8]} 55... Rc2 {[%clk 0:00:26.5]} 56. Kg5 {[%clk 0:00:07.6]} 56... Rf2
{[%clk 0:00:26]} 57. Kxh5 {[%clk 0:00:07.5]} 57... b2 {[%clk 0:00:25.1]} 58.
Rxb2 {[%clk 0:00:06.8]} 58... Rxf7 {[%clk 0:00:24.8]} 59. Rd2 {[%clk 0:00:06.5]}
59... Kc3 {[%clk 0:00:23.9]} 60. Rd8 {[%clk 0:00:06]} 60... Kc4 {[%clk
0:00:22.7]} 61. g4 {[%clk 0:00:06.5]} 61... Rf8 {[%clk 0:00:23.1]} 62. Rxf8
{[%clk 0:00:05.9]} 1-0

[Event "Late-Titled-Tuesday-Blitz-May-07-2024"]
[Site "Chess.com"]
[Date "2024.05.07"]
[Round "11"]
[White "bancsoo"]
[Black "The_Machine04"]
[Result "1-0"]
[WhiteElo "2869"]
[BlackElo "2781"]
[TimeControl "180+1"]
[EndTime "16:07:51 PDT"]
[Termination "bancsoo won by checkmate"]

1. Nf3 {[%clk 0:03:00.9]} 1... Nf6 {[%clk 0:02:55.4]} 2. d4 {[%clk 0:03:00.9]}
2... d6 {[%clk 0:02:55.4]} 3. Bf4 {[%clk 0:03:00.3]} 3... g6 {[%clk 0:02:54.9]}
4. c3 {[%clk 0:02:59.8]} 4... Bg7 {[%clk 0:02:55.1]} 5. e3 {[%clk 0:03:00.1]}
5... O-O {[%clk 0:02:55.6]} 6. h3 {[%clk 0:03:00.4]} 6... Nc6 {[%clk 0:02:56]}
7. Bh2 {[%clk 0:02:58.9]} 7... Re8 {[%clk 0:02:55.9]} 8. Be2 {[%clk 0:02:57.6]}
8... Bf5 {[%clk 0:02:56]} 9. O-O {[%clk 0:02:56.7]} 9... e5 {[%clk 0:02:56.4]}
10. Nbd2 {[%clk 0:02:57]} 10... e4 {[%clk 0:02:54.7]} 11. Ne1 {[%clk 0:02:57.1]}
11... h5 {[%clk 0:02:54.7]} 12. b4 {[%clk 0:02:56.7]} 12... Nh7 {[%clk
0:02:39.6]} 13. Kh1 {[%clk 0:02:51.6]} 13... h4 {[%clk 0:02:35.1]} 14. Bg4
{[%clk 0:02:41]} 14... Qd7 {[%clk 0:02:12.8]} 15. Nc2 {[%clk 0:02:30.1]} 15...
Nf6 {[%clk 0:01:57.8]} 16. Bxf5 {[%clk 0:02:28.9]} 16... Qxf5 {[%clk 0:01:58.7]}
17. Qe2 {[%clk 0:02:23.2]} 17... Nd5 {[%clk 0:01:51.4]} 18. Qc4 {[%clk 0:02:14]}
18... Nb6 {[%clk 0:01:19.6]} 19. Qb3 {[%clk 0:02:10.1]} 19... a5 {[%clk
0:01:10.9]} 20. a4 {[%clk 0:01:58.8]} 20... g5 {[%clk 0:00:54]} 21. b5 {[%clk
0:01:53.7]} 21... Ne7 {[%clk 0:00:50.3]} 22. f3 {[%clk 0:01:48.4]} 22... exf3
{[%clk 0:00:47]} 23. Rxf3 {[%clk 0:01:48.8]} 23... Qe6 {[%clk 0:00:46.5]} 24. e4
{[%clk 0:01:02.4]} 24... Qxb3 {[%clk 0:00:44.5]} 25. Nxb3 {[%clk 0:01:02.8]}
25... Nc4 {[%clk 0:00:42.3]} 26. Bg1 {[%clk 0:00:44.8]} 26... Ng6 {[%clk
0:00:41.3]} 27. Ne3 {[%clk 0:00:42]} 27... Nxe3 {[%clk 0:00:31.8]} 28. Rxe3
{[%clk 0:00:42.2]} 28... b6 {[%clk 0:00:15.7]} 29. Rae1 {[%clk 0:00:40.3]} 29...
Re7 {[%clk 0:00:15.2]} 30. Nd2 {[%clk 0:00:32.7]} 30... Rae8 {[%clk 0:00:14.7]}
31. Nc4 {[%clk 0:00:27.6]} 31... Bh6 {[%clk 0:00:14.3]} 32. e5 {[%clk
0:00:21.5]} 32... dxe5 {[%clk 0:00:12.9]} 33. dxe5 {[%clk 0:00:20.4]} 33... Bg7
{[%clk 0:00:11.8]} 34. Bh2 {[%clk 0:00:20.3]} 34... Bh6 {[%clk 0:00:10.4]} 35.
Re4 {[%clk 0:00:20.7]} 35... Re6 {[%clk 0:00:10]} 36. Ne3 {[%clk 0:00:19.6]}
36... Bg7 {[%clk 0:00:09.1]} 37. Nd5 {[%clk 0:00:19.9]} 37... Rc8 {[%clk
0:00:08]} 38. c4 {[%clk 0:00:18.7]} 38... Kh7 {[%clk 0:00:06.8]} 39. Kg1 {[%clk
0:00:18.8]} 39... Bf8 {[%clk 0:00:06.2]} 40. Kf1 {[%clk 0:00:18.9]} 40... Bc5
{[%clk 0:00:06.4]} 41. Nf6+ {[%clk 0:00:18.6]} 41... Kg7 {[%clk 0:00:06.7]} 42.
Rd1 {[%clk 0:00:19.1]} 42... Nf4 {[%clk 0:00:02.4]} 43. Bxf4 {[%clk 0:00:18.8]}
43... gxf4 {[%clk 0:00:03.3]} 44. Ng4 {[%clk 0:00:19.4]} 44... Rce8 {[%clk
0:00:02.9]} 45. Rxf4 {[%clk 0:00:19.4]} 45... Rxe5 {[%clk 0:00:03]} 46. Nxe5
{[%clk 0:00:18.8]} 46... Rxe5 {[%clk 0:00:03.9]} 47. Rd7 {[%clk 0:00:18.9]}
47... Bd6 {[%clk 0:00:01.5]} 48. Rdxf7+ {[%clk 0:00:18.6]} 48... Kg6 {[%clk
0:00:02.1]} 49. R7f6+ {[%clk 0:00:17.7]} 49... Kg7 {[%clk 0:00:02.1]} 50. R6f5
{[%clk 0:00:17]} 50... Re3 {[%clk 0:00:02]} 51. Rg4+ {[%clk 0:00:17.2]} 51...
Kh6 {[%clk 0:00:02.1]} 52. Rxh4+ {[%clk 0:00:16.5]} 52... Kg6 {[%clk 0:00:02.7]}
53. Rf3 {[%clk 0:00:16.8]} 53... Re6 {[%clk 0:00:02.2]} 54. Rg4+ {[%clk
0:00:17.1]} 54... Kh5 {[%clk 0:00:02.5]} 55. Rf5+ {[%clk 0:00:17.1]} 55... Kh6
{[%clk 0:00:03.1]} 56. h4 {[%clk 0:00:17.5]} 56... Re3 {[%clk 0:00:03.2]} 57.
Rfg5 {[%clk 0:00:16.9]} 57... Bb4 {[%clk 0:00:02.8]} 58. Kf2 {[%clk 0:00:16.9]}
58... Bc5 {[%clk 0:00:02.6]} 59. Rxc5 {[%clk 0:00:17]} 59... Rb3 {[%clk
0:00:02.9]} 60. Rc6+ {[%clk 0:00:15.9]} 60... Kh5 {[%clk 0:00:03.8]} 61. Rg8
{[%clk 0:00:13.4]} 61... Kxh4 {[%clk 0:00:03.5]} 62. Rh6# {[%clk 0:00:13.3]} 1-0